Workbook

Sheet Feuil1
C1: cas1
B2: L(m) | C2: Chw | D2: D(mm) | E2: R(m) | F2: Re(m) | J2: Qe(l/s) | K2: Q (l/s) | L2: Hf | R2: 1.852
A3: 1 | B3: 1000 | C3: 100 | D3: 300 | E3: =(10.667*B3)/(POWER(C3,$R$2)*POWER(D3/1000,$R$3)) -> 742.9928994 | H3: =(1/((1/G4)^(1/$R$2)+(1/E3)^(1/$R$2)+(1/E8)^(1/$R$2)))^$R$2 -> 47.23102265 | I3: =H3+E9 -> 596.1766525 | J3: =R9 -> 0.6 | K3: =(H3/E3)^(1/$R$2)*(J3) -> 0.1355045869 | L3: =E3*(K3)^$R$2 -> 18.33848544 | R3: 4.871
A4: 2 | B4: 200 | C4: 100 | D4: 350 | E4: =(10.667*B4)/(POWER(C4,$R$2)*POWER(D4/1000,$R$3)) -> 70.13210054 | G4: =F5+E4+E7 -> 267.5454759 | J4: =R9 -> 0.6 | K4: =(H3/G4)^(1/$R$2)*(J4) -> 0.2352186987 | L4: =E4*(K4)^$R$2 -> 4.807094944 | R4: valeur | S4: 1.5
A5: 3 | B5: 300 | C5: 100 | D5: 350 | E5: 105.1981508 | F5: =(1/((1/E5)^(1/$R$2)+(1/E6)^(1/$R$2)))^$R$2 -> 48.8147955 | J5: =K4 -> 0.2352186987 | K5: =(F5/E5)^(1/$R$2)*(J5) -> 0.1553887833 | L5: 3.345933672 | R5: nombre | S5: 2 | T5: 0
A6: 4 | B6: 200 | C6: 100 | D6: 250 | E6: 361.1657083 | J6: =K4 -> 0.2352186987 | K6: =(F5/E6)^(1/$R$2)*J5 -> 0.07982991539 | L6: 3.345933672 | R6: valeur | S6: 10
A7: 5 | B7: 200 | C7: 100 | D7: 300 | E7: 148.5985799 | J7: =K4 -> 0.2352186987 | K7: =K4 -> 0.2352186987 | L7: 10.18545682 | R7: nombre | S7: 1
A8: 6 | B8: 800 | C8: 100 | D8: 350 | E8: 280.5284022 | J8: =R9 -> 0.6 | K8: =(H3/E8)^(1/$R$2)*(J8) -> 0.2292767145 | L8: 18.33848544
A9: 7 | B9: 3000 | C9: 100 | D9: 400 | E9: 548.9456299 | J9: =R9 -> 0.6 | K9: =R9 -> 0.6 | L9: 213.1402387 | R9: 0.6
C12: cas2
B13: a | C13: b | D13: c | E13: d | F13: e | G13: f | H13: g | L13: h | M13: i | N13: j | O13: Delta
A14: 1 | B14: 1000 | C14: =0.007746483*$S$5*$S$4*(M14)^(37/250)*E14^(463/250)*(F14/1000)^(871/1000) -> 30.64274246 | D14: =$B14+C14 -> 1030.642742 | E14: 100 | F14: 300 | G14: =(10.667*B14)/(POWER(E14,$R$2)*POWER(F14/1000,$R$3)) -> 742.9928994 | J14: =(1/((1/I15)^(1/$R$2)+(1/G14)^(1/$R$2)+(1/G19)^(1/$R$2)))^$R$2 -> 47.23102265 | K14: =J14+G20 -> 596.1766525 | L14: =$R$9 -> 0.6 | M14: =(J14/G14)^(1/$R$2)*(L14) -> 0.1355045869 | N14: =G14*(M14)^$R$2 -> 18.33848544
A15: 2 | B15: 200 | C15: =0.007746483*$S$5*$T$4*(M15)^(37/250)*E15^(463/250)*(F15/1000)^(871/1000) -> 0 | D15: =$B15+C15 -> 200 | E15: 100 | F15: 350 | G15: 70.13210054 | I15: =H16+G15+G18 -> 267.5454759 | L15: =$R$9 -> 0.6 | M15: =(J14/I15)^(1/$R$2)*(L15) -> 0.2352186987 | N15: 4.807094944
A16: 3 | B16: 300 | C16: =0.007746483*$S$5*$S$4*(M16)^(37/250)*E16^(463/250)*(F16/1000)^(871/1000) -> 35.76343326 | D16: 335.7634333 | E16: 100 | F16: 350 | G16: 105.1981508 | H16: =(1/((1/G16)^(1/$R$2)+(1/G17)^(1/$R$2)))^$R$2 -> 48.8147955 | L16: =M15 -> 0.2352186987 | M16: =(H16/G16)^(1/$R$2)*(L16) -> 0.1553887833 | N16: 3.345933672
A17: 4 | B17: 200 | C17: =0.007746483*$S$5*$T$4*(M17)^(37/250)*E17^(463/250)*(F17/1000)^(871/1000) -> 0 | D17: 200 | E17: 100 | F17: 250 | G17: 361.1657083 | L17: =M15 -> 0.2352186987 | M17: =(H16/G17)^(1/$R$2)*L16 -> 0.07982991539 | N17: 3.345933672
A18: 5 | B18: 200 | C18: =0.007746483*$S$7*$S$6*(M18)^(37/250)*E18^(463/250)*(F18/1000)^(871/1000) -> 110.8294091 | D18: 310.8294091 | E18: 100 | F18: 300 | G18: 148.5985799 | L18: =M15 -> 0.2352186987 | M18: =M15 -> 0.2352186987 | N18: 10.18545682
A19: 6 | B19: 800 | C19: =0.007746483*$S$5*$S$4*(M19)^(37/250)*E19^(463/250)*(F19/1000)^(871/1000) -> 37.88282572 | D19: 837.8828257 | E19: 100 | F19: 350 | G19: 280.5284022 | L19: =$R$9 -> 0.6 | M19: =(J14/G19)^(1/$R$2)*(L19) -> 0.2292767145 | N19: 18.33848544
A20: 7 | B20: 3000 | C20: =0.007746483*$T$5*$T$5*(M20)^(37/250)*E20^(463/250)*(F20/1000)^(871/1000) -> 0 | D20: 3000 | E20: 100 | F20: 400 | G20: 548.9456299 | L20: =$R$9 -> 0.6 | M20: =$R$9 -> 0.6 | N20: 213.1402387
B23: a | C23: b | D23: c | E23: d | F23: e | G23: f | H23: g | L23: h | M23: i | N23: j | O23: Delta
A24: 1 | B24: 1030.642742 | C24: =0.007746483*$S$5*$S$4*(M24)^(37/250)*E24^(463/250)*(F24/1000)^(871/1000) -> 30.88866495 | D24: =$B24+C24 -> 1061.531407 | E24: 100 | F24: 300 | G24: =(10.667*B24)/(POWER(E24,$R$2)*POWER(F24/1000,$R$3)) -> 765.7602395 | J24: =(1/((1/I25)^(1/$R$2)+(1/G24)^(1/$R$2)+(1/G29)^(1/$R$2)))^$R$2 -> 53.79925289 | K24: =J24+G30 -> 602.7448828 | L24: =$R$9 -> 0.6 | M24: =(J24/G24)^(1/$R$2)*(L24) -> 0.1430243962 | N24: =G24*(M24)^$R$2 -> 20.88874558 | O24: 0.007519809298
A25: 2 | B25: 200 | C25: =0.007746483*$S$5*$T$4*(M25)^(37/250)*E25^(463/250)*(F25/1000)^(871/1000) -> 0 | D25: =$B25+C25 -> 200 | E25: 100 | F25: 350 | G25: 70.13210054 | I25: =H26+G25+G28 -> 353.6207271 | L25: =$R$9 -> 0.6 | M25: =(J24/I25)^(1/$R$2)*(L25) -> 0.2170677887 | N25: 4.142776407 | O25: 0.01815090998
A26: 3 | B26: 335.7634333 | C26: =0.007746483*$S$5*$S$4*(M26)^(37/250)*E26^(463/250)*(F26/1000)^(871/1000) -> 35.23092918 | D26: 370.9943624 | E26: 100 | F26: 350 | G26: 117.7389743 | H26: =(1/((1/G26)^(1/$R$2)+(1/G27)^(1/$R$2)))^$R$2 -> 52.5445827 | L26: =M25 -> 0.2170677887 | M26: =(H26/G26)^(1/$R$2)*(L26) -> 0.1404102056 | N26: 3.103863364 | O26: 0.01497857765
A27: 4 | B27: 200 | C27: =0.007746483*$S$5*$T$4*(M27)^(37/250)*E27^(463/250)*(F27/1000)^(871/1000) -> 0 | D27: 200 | E27: 100 | F27: 250 | G27: 361.1657083 | L27: =M25 -> 0.2170677887 | M27: =(H26/G27)^(1/$R$2)*L26 -> 0.07665758306 | N27: 3.103863364 | O27: 0.003172332332
A28: 5 | B28: 310.8294091 | C28: =0.007746483*$S$7*$S$6*(M28)^(37/250)*E28^(463/250)*(F28/1000)^(871/1000) -> 109.5199663 | D28: 420.3493754 | E28: 100 | F28: 300 | G28: 230.9440439 | L28: =M25 -> 0.2170677887 | M28: =M25 -> 0.2170677887 | N28: 13.64210581 | O28: 0.01815090998
A29: 6 | B29: 837.8828257 | C29: =0.007746483*$S$5*$S$4*(M29)^(37/250)*E29^(463/250)*(F29/1000)^(871/1000) -> 38.13780238 | D29: 876.0206281 | E29: 100 | F29: 350 | G29: 293.8124129 | L29: =$R$9 -> 0.6 | M29: =(J24/G29)^(1/$R$2)*(L29) -> 0.2399078151 | N29: 20.88874558 | O29: 0.01063110068
A30: 7 | B30: 3000 | C30: =0.007746483*$T$5*$T$5*(M30)^(37/250)*E30^(463/250)*(F30/1000)^(871/1000) -> 0 | D30: 3000 | E30: 100 | F30: 400 | G30: 548.9456299 | L30: =$R$9 -> 0.6 | M30: =$R$9 -> 0.6 | N30: 213.1402387 | O30: 0
